[Event "Titled Tuesday Blitz March 22 Early 2022"]
[White "Dahlgren, James Allen"]
[Black "Pourkashiyan, Atousa"]
[WhiteFideId "22256873"]
[BlackFideId "12502014"]
[WhiteElo "2105"]
[BlackElo "2247"]
[Result "0-1"]
[Round "02"]
[TimeControl "180+1"]
[Date "2022.03.22"]
[WhiteClock "0:00:24"]
[BlackClock "0:00:19"]

1. d3 {[%clk 0:02:59]}  d5 {[%clk 0:02:04]} 2. f4 {[%clk 0:02:59]}  Nc6 {[%clk 0:02:02]} 3. Nf3 {[%clk 0:02:59]}  Bg4 {[%clk 0:02:00]} 4. g3 {[%clk 0:03:00]}  Bxf3 {[%clk 0:02:00]} 5. exf3 {[%clk 0:03:01]}  e5 {[%clk 0:02:01]} 6. fxe5 {[%clk 0:03:01]}  Nxe5 {[%clk 0:02:01]} 7. Bg2 {[%clk 0:03:02]}  Nf6 {[%clk 0:02:01]} 8. O-O {[%clk 0:03:02]}  Be7 {[%clk 0:02:00]} 9. Nc3 {[%clk 0:03:02]}  O-O {[%clk 0:01:58]} 10. f4 {[%clk 0:03:03]}  Nc6 {[%clk 0:01:53]} 11. h3 {[%clk 0:03:03]}  Re8 {[%clk 0:01:49]} 12. Qf3 {[%clk 0:03:01]}  Bc5+ {[%clk 0:01:44]} 13. Kh2 {[%clk 0:03:00]}  Nd4 {[%clk 0:01:45]} 14. Qd1 {[%clk 0:03:01]}  c6 {[%clk 0:01:41]} 15. a3 {[%clk 0:03:00]}  Nf5 {[%clk 0:01:41]} 16. b4 {[%clk 0:02:51]}  Bd4 {[%clk 0:01:40]} 17. Qd2 {[%clk 0:02:43]}  Ne3 {[%clk 0:01:17]} 18. Rf3 {[%clk 0:02:39]}  Nh5 {[%clk 0:01:10]} 19. Bb2 {[%clk 0:02:35]}  Nxg2 {[%clk 0:01:00]} 20. Kxg2 {[%clk 0:02:13]}  Qe7 {[%clk 0:00:42]} 21. Raf1 {[%clk 0:01:29]}  Rad8 {[%clk 0:00:42]} 22. g4 {[%clk 0:01:24]}  Nf6 {[%clk 0:00:42]} 23. Kg3 {[%clk 0:01:15]}  h6 {[%clk 0:00:41]} 24. Nd1 {[%clk 0:01:14]}  Bxb2 {[%clk 0:00:40]} 25. Nxb2 {[%clk 0:01:15]}  Qe2 {[%clk 0:00:40]} 26. Qxe2 {[%clk 0:01:12]}  Rxe2 {[%clk 0:00:41]} 27. R1f2 {[%clk 0:01:13]}  Rde8 {[%clk 0:00:41]} 28. Nd1 {[%clk 0:01:04]}  Nd7 {[%clk 0:00:31]} 29. Rxe2 {[%clk 0:00:57]}  Rxe2 {[%clk 0:00:30]} 30. Rf2 {[%clk 0:00:58]}  Re1 {[%clk 0:00:31]} 31. Rd2 {[%clk 0:00:48]}  d4 {[%clk 0:00:29]} 32. Kf2 {[%clk 0:00:47]}  Re7 {[%clk 0:00:29]} 33. Re2 {[%clk 0:00:46]}  Kf8 {[%clk 0:00:28]} 34. Rxe7 {[%clk 0:00:46]}  Kxe7 {[%clk 0:00:29]} 35. Nb2 {[%clk 0:00:46]}  Nf6 {[%clk 0:00:29]} 36. Nc4 {[%clk 0:00:46]}  Nd5 {[%clk 0:00:29]} 37. Kf3 {[%clk 0:00:43]}  Kd7 {[%clk 0:00:25]} 38. Ne5+ {[%clk 0:00:43]}  Ke6 {[%clk 0:00:25]} 39. Ke4 {[%clk 0:00:40]}  Ne3 {[%clk 0:00:21]} 40. f5+ {[%clk 0:00:36]}  Kd6 {[%clk 0:00:18]} 41. Nxf7+ {[%clk 0:00:36]}  Ke7 {[%clk 0:00:18]} 42. Ne5 {[%clk 0:00:34]}  Nxc2 {[%clk 0:00:19]} 43. h4 {[%clk 0:00:29]}  Nxa3 {[%clk 0:00:19]} 44. Kxd4 {[%clk 0:00:29]}  Nb5+ {[%clk 0:00:19]} 45. Kc5 {[%clk 0:00:28]}  Nc7 {[%clk 0:00:20]} 46. g5 {[%clk 0:00:27]}  hxg5 {[%clk 0:00:19]} 47. hxg5 {[%clk 0:00:28]}  Nd5 {[%clk 0:00:20]} 48. Ng6+ {[%clk 0:00:26]}  Kf7 {[%clk 0:00:19]} 49. Ne5+ {[%clk 0:00:24]}  Ke7 {[%clk 0:00:19]} 50. Ng6+ {[%clk 0:00:24]}  Kd7 {[%clk 0:00:19]} 51. Ne5+ {[%clk 0:00:24]}  Kc7 {[%clk 0:00:19]} 52. d4 {[%clk 0:00:24]}  Ne3 {[%clk 0:00:19]} 53. f6 {[%clk 0:00:24]}  b6# {[%clk 0:00:19]} 0-1


[Site "https://www.chess.com"]

[Event "Titled Tuesday Blitz March 22 Early 2022"]
[White "Dudzinski, Pawel"]
[Black "Obolentseva, Alexandra"]
[WhiteFideId "1117890"]
[BlackFideId "24153648"]
[WhiteElo "2033"]
[BlackElo "2113"]
[Result "0-1"]
[Round "02"]
[TimeControl "180+1"]
[Date "2022.03.22"]
[WhiteClock "0:00:21"]
[BlackClock "0:00:46"]

1. e4 {[%clk 0:03:00]}  c5 {[%clk 0:02:59]} 2. Nc3 {[%clk 0:03:00]}  d6 {[%clk 0:02:59]} 3. g3 {[%clk 0:03:01]}  g6 {[%clk 0:02:59]} 4. Bg2 {[%clk 0:03:01]}  Bg7 {[%clk 0:02:59]} 5. d3 {[%clk 0:03:02]}  Nf6 {[%clk 0:02:59]} 6. Be3 {[%clk 0:03:02]}  O-O {[%clk 0:02:59]} 7. h3 {[%clk 0:03:03]}  Nbd7 {[%clk 0:02:56]} 8. Nge2 {[%clk 0:02:58]}  Rb8 {[%clk 0:02:56]} 9. d4 {[%clk 0:02:59]}  cxd4 {[%clk 0:02:51]} 10. Nxd4 {[%clk 0:03:00]}  a6 {[%clk 0:02:49]} 11. O-O {[%clk 0:02:58]}  Ne5 {[%clk 0:02:49]} 12. b3 {[%clk 0:02:54]}  Qc7 {[%clk 0:02:46]} 13. Nce2 {[%clk 0:02:55]}  b5 {[%clk 0:02:45]} 14. f4 {[%clk 0:02:55]}  Ned7 {[%clk 0:02:45]} 15. Rc1 {[%clk 0:02:56]}  Bb7 {[%clk 0:02:41]} 16. c4 {[%clk 0:02:53]}  Qa5 {[%clk 0:02:37]} 17. cxb5 {[%clk 0:02:47]}  axb5 {[%clk 0:02:38]} 18. Nc6 {[%clk 0:02:33]}  Bxc6 {[%clk 0:02:36]} 19. Rxc6 {[%clk 0:02:34]}  Qxa2 {[%clk 0:02:33]} 20. Rc7 {[%clk 0:01:47]}  Rfc8 {[%clk 0:02:26]} 21. Ra7 {[%clk 0:01:40]}  Qc2 {[%clk 0:02:17]} 22. g4 {[%clk 0:01:40]}  Qxd1 {[%clk 0:02:15]} 23. Rxd1 {[%clk 0:01:40]}  Nc5 {[%clk 0:01:50]} 24. Bxc5 {[%clk 0:01:31]}  dxc5 {[%clk 0:01:50]} 25. Rxe7 {[%clk 0:01:32]}  c4 {[%clk 0:01:51]} 26. bxc4 {[%clk 0:01:22]}  bxc4 {[%clk 0:01:51]} 27. e5 {[%clk 0:01:23]}  c3 {[%clk 0:01:35]} 28. Nxc3 {[%clk 0:00:29]}  Rxc3 {[%clk 0:01:36]} 29. exf6 {[%clk 0:00:29]}  Bxf6 {[%clk 0:01:36]} 30. Re2 {[%clk 0:00:27]}  Rc7 {[%clk 0:01:30]} 31. Rf1 {[%clk 0:00:26]}  Bd4+ {[%clk 0:01:29]} 32. Kh1 {[%clk 0:00:25]}  Kg7 {[%clk 0:01:28]} 33. f5 {[%clk 0:00:25]}  gxf5 {[%clk 0:01:24]} 34. Rxf5 {[%clk 0:00:26]}  Rb1+ {[%clk 0:01:17]} 35. Rf1 {[%clk 0:00:27]}  Rb5 {[%clk 0:01:13]} 36. Be4 {[%clk 0:00:22]}  Rb3 {[%clk 0:01:04]} 37. Rf3 {[%clk 0:00:19]}  Rc1+ {[%clk 0:00:59]} 38. Kg2 {[%clk 0:00:18]}  Rg1+ {[%clk 0:00:57]} 39. Kh2 {[%clk 0:00:18]}  Rxf3 {[%clk 0:00:58]} 40. Bxf3 {[%clk 0:00:17]}  Rf1 {[%clk 0:00:59]} 41. Kg2 {[%clk 0:00:16]}  Rg1+ {[%clk 0:00:59]} 42. Kh2 {[%clk 0:00:16]}  Rc1 {[%clk 0:00:58]} 43. Kg2 {[%clk 0:00:17]}  Rc7 {[%clk 0:00:58]} 44. Be4 {[%clk 0:00:17]}  Bf6 {[%clk 0:00:58]} 45. Bf5 {[%clk 0:00:17]}  Bh4 {[%clk 0:00:57]} 46. Rd2 {[%clk 0:00:17]}  Re7 {[%clk 0:00:57]} 47. Rd7 {[%clk 0:00:15]}  Re2+ {[%clk 0:00:54]} 48. Kf3 {[%clk 0:00:16]}  Rf2+ {[%clk 0:00:55]} 49. Ke4 {[%clk 0:00:15]}  Rh2 {[%clk 0:00:53]} 50. Be6 {[%clk 0:00:15]}  Re2+ {[%clk 0:00:53]} 51. Kf5 {[%clk 0:00:15]}  Rxe6 {[%clk 0:00:54]} 52. g5 {[%clk 0:00:14]}  Rg6 {[%clk 0:00:48]} 53. Kg4 {[%clk 0:00:13]}  Bxg5 {[%clk 0:00:47]} 54. Kh5 {[%clk 0:00:13]}  Bf6 {[%clk 0:00:45]} 55. h4 {[%clk 0:00:14]}  Rh6+ {[%clk 0:00:45]} 56. Kg4 {[%clk 0:00:15]}  Rxh4+ {[%clk 0:00:46]} 57. Kf5 {[%clk 0:00:16]}  Rh5+ {[%clk 0:00:46]} 58. Kg4 {[%clk 0:00:16]}  Rg5+ {[%clk 0:00:46]} 59. Kf4 {[%clk 0:00:16]}  Rg6 {[%clk 0:00:47]} 60. Kf5 {[%clk 0:00:16]}  h5 {[%clk 0:00:47]} 61. Rd3 {[%clk 0:00:14]}  h4 {[%clk 0:00:47]} 62. Rh3 {[%clk 0:00:14]}  Rg3 {[%clk 0:00:47]} 63. Rh1 {[%clk 0:00:13]}  h3 {[%clk 0:00:46]} 64. Kf4 {[%clk 0:00:13]}  Bh4 {[%clk 0:00:42]} 65. Rh2 {[%clk 0:00:12]}  Ra3 {[%clk 0:00:41]} 66. Kg4 {[%clk 0:00:12]}  Bf6 {[%clk 0:00:40]} 67. Rxh3 {[%clk 0:00:12]}  Rxh3 {[%clk 0:00:41]} 68. Kxh3 {[%clk 0:00:13]}  Kg6 {[%clk 0:00:42]} 69. Kg4 {[%clk 0:00:14]}  Bg7 {[%clk 0:00:42]} 70. Kf3 {[%clk 0:00:15]}  Kf6 {[%clk 0:00:43]} 71. Kg2 {[%clk 0:00:16]}  Kf5 {[%clk 0:00:43]} 72. Kf3 {[%clk 0:00:17]}  f6 {[%clk 0:00:43]} 73. Kg3 {[%clk 0:00:18]}  Bh6 {[%clk 0:00:43]} 74. Kf2 {[%clk 0:00:18]}  Kf4 {[%clk 0:00:44]} 75. Kg2 {[%clk 0:00:19]}  f5 {[%clk 0:00:45]} 76. Kf2 {[%clk 0:00:20]}  Kg4 {[%clk 0:00:45]} 77. Kf1 {[%clk 0:00:20]}  Kf3 {[%clk 0:00:45]} 78. Kg1 {[%clk 0:00:21]}  Ke2 {[%clk 0:00:45]} 79. Kg2 {[%clk 0:00:21]}  f4 {[%clk 0:00:46]} 0-1


[Site "https://www.chess.com"]

[Event "Titled Tuesday Blitz March 22 Early 2022"]
[White "Dushyant Sharma"]
[Black "Lou, Yiping"]
[WhiteFideId "25065130"]
[BlackFideId "8603928"]
[WhiteElo "2105"]
[BlackElo "2412"]
[Result "0-1"]
[Round "02"]
[TimeControl "180+1"]
[Date "2022.03.22"]
[WhiteClock "0:00:04"]
[BlackClock "0:00:18"]

1. e4 {[%clk 0:03:00]}  c5 {[%clk 0:02:58]} 2. Nf3 {[%clk 0:03:01]}  d6 {[%clk 0:02:57]} 3. d4 {[%clk 0:03:01]}  cxd4 {[%clk 0:02:58]} 4. Nxd4 {[%clk 0:03:02]}  Nf6 {[%clk 0:02:58]} 5. Nc3 {[%clk 0:03:02]}  a6 {[%clk 0:02:59]} 6. f4 {[%clk 0:03:02]}  e5 {[%clk 0:02:58]} 7. Nf3 {[%clk 0:03:03]}  Nbd7 {[%clk 0:02:57]} 8. Bd3 {[%clk 0:03:03]}  Be7 {[%clk 0:02:55]} 9. a4 {[%clk 0:03:03]}  O-O {[%clk 0:02:55]} 10. O-O {[%clk 0:03:04]}  Nc5 {[%clk 0:02:51]} 11. Kh1 {[%clk 0:03:01]}  exf4 {[%clk 0:02:46]} 12. Bxf4 {[%clk 0:02:59]}  Bg4 {[%clk 0:02:46]} 13. Qe1 {[%clk 0:02:59]}  Bh5 {[%clk 0:02:43]} 14. Nd4 {[%clk 0:02:55]}  Re8 {[%clk 0:02:38]} 15. Qg3 {[%clk 0:02:46]}  Bg6 {[%clk 0:02:34]} 16. Rae1 {[%clk 0:02:44]}  Nh5 {[%clk 0:02:32]} 17. Qh3 {[%clk 0:02:44]}  Nxf4 {[%clk 0:02:29]} 18. Rxf4 {[%clk 0:02:45]}  Bf6 {[%clk 0:02:24]} 19. Nf5 {[%clk 0:02:35]}  Bxc3 {[%clk 0:02:05]} 20. bxc3 {[%clk 0:02:34]}  d5 {[%clk 0:02:04]} 21. e5 {[%clk 0:02:20]}  Qc7 {[%clk 0:01:46]} 22. Nd6 {[%clk 0:01:46]}  Nxd3 {[%clk 0:01:40]} 23. Nxe8 {[%clk 0:01:46]}  Qxc3 {[%clk 0:01:17]} 24. Ref1 {[%clk 0:01:19]}  Rxe8 {[%clk 0:01:14]} 25. cxd3 {[%clk 0:01:18]}  Qxe5 {[%clk 0:01:13]} 26. Qd7 {[%clk 0:01:09]}  h6 {[%clk 0:01:08]} 27. h3 {[%clk 0:01:02]}  Re7 {[%clk 0:01:07]} 28. Qd8+ {[%clk 0:00:58]}  Kh7 {[%clk 0:01:08]} 29. d4 {[%clk 0:00:58]}  Qe6 {[%clk 0:01:06]} 30. a5 {[%clk 0:00:58]}  Be4 {[%clk 0:01:06]} 31. Kh2 {[%clk 0:00:57]}  f5 {[%clk 0:01:03]} 32. R4f2 {[%clk 0:00:53]}  Rd7 {[%clk 0:01:01]} 33. Qc8 {[%clk 0:00:50]}  Qd6+ {[%clk 0:01:01]} 34. Kg1 {[%clk 0:00:47]}  Rc7 {[%clk 0:01:01]} 35. Qb8 {[%clk 0:00:43]}  Qe7 {[%clk 0:00:54]} 36. Rb2 {[%clk 0:00:41]}  Rd7 {[%clk 0:00:46]} 37. Qc8 {[%clk 0:00:36]}  Rc7 {[%clk 0:00:44]} 38. Qb8 {[%clk 0:00:36]}  Qd7 {[%clk 0:00:38]} 39. Rb6 {[%clk 0:00:30]}  Rc2 {[%clk 0:00:37]} 40. Rf2 {[%clk 0:00:27]}  Qa4 {[%clk 0:00:34]} 41. Rxc2 {[%clk 0:00:26]}  Qxc2 {[%clk 0:00:34]} 42. Qg3 {[%clk 0:00:26]}  f4 {[%clk 0:00:30]} 43. Qg4 {[%clk 0:00:10]}  Qd2 {[%clk 0:00:25]} 44. Rxb7 {[%clk 0:00:08]}  Qxd4+ {[%clk 0:00:25]} 45. Kh2 {[%clk 0:00:08]}  Qe5 {[%clk 0:00:25]} 46. Kg1 {[%clk 0:00:07]}  d4 {[%clk 0:00:24]} 47. Rd7 {[%clk 0:00:07]}  d3 {[%clk 0:00:23]} 48. Kf2 {[%clk 0:00:04]}  Bg6 {[%clk 0:00:23]} 49. h4 {[%clk 0:00:03]}  Qe3+ {[%clk 0:00:22]} 50. Kf1 {[%clk 0:00:03]}  d2 {[%clk 0:00:22]} 51. Qe2 {[%clk 0:00:03]}  d1=Q+ {[%clk 0:00:17]} 52. Rxd1 {[%clk 0:00:03]}  Qxe2+ {[%clk 0:00:17]} 53. Kxe2 {[%clk 0:00:03]}  Bh5+ {[%clk 0:00:18]} 54. g4 {[%clk 0:00:04]}  Bxg4+ {[%clk 0:00:18]} 0-1


[Site "https://www.chess.com"]

[Event "Titled Tuesday Blitz March 22 Early 2022"]
[White "Fawole, John Oyeyemi"]
[Black "Santos Flores, Alberto"]
[WhiteFideId "8501319"]
[BlackFideId "3601234"]
[WhiteElo "2091"]
[BlackElo "2235"]
[Result "0-1"]
[Round "02"]
[TimeControl "180+1"]
[Date "2022.03.22"]
[WhiteClock "0:01:17"]
[BlackClock "0:01:46"]

1. e4 {[%clk 0:03:00]}  c5 {[%clk 0:02:58]} 2. Nf3 {[%clk 0:03:00]}  Nc6 {[%clk 0:02:57]} 3. d4 {[%clk 0:02:59]}  cxd4 {[%clk 0:02:57]} 4. Nxd4 {[%clk 0:02:59]}  g6 {[%clk 0:02:58]} 5. Nc3 {[%clk 0:02:59]}  Bg7 {[%clk 0:02:58]} 6. Be3 {[%clk 0:02:58]}  Nf6 {[%clk 0:02:57]} 7. Be2 {[%clk 0:02:53]}  O-O {[%clk 0:02:56]} 8. O-O {[%clk 0:02:53]}  d6 {[%clk 0:02:56]} 9. Qd2 {[%clk 0:02:47]}  Nxd4 {[%clk 0:02:54]} 10. Bxd4 {[%clk 0:02:46]}  Be6 {[%clk 0:02:55]} 11. h3 {[%clk 0:02:44]}  Qa5 {[%clk 0:02:54]} 12. f4 {[%clk 0:02:43]}  Nxe4 {[%clk 0:02:53]} 13. Nxe4 {[%clk 0:02:40]}  Qxd2 {[%clk 0:02:54]} 14. Nxd2 {[%clk 0:02:38]}  Bxd4+ {[%clk 0:02:53]} 15. Kh2 {[%clk 0:02:38]}  Bxb2 {[%clk 0:02:53]} 16. Rab1 {[%clk 0:02:35]}  Bf6 {[%clk 0:02:39]} 17. Ne4 {[%clk 0:02:29]}  Kg7 {[%clk 0:02:32]} 18. Nxf6 {[%clk 0:02:26]}  Kxf6 {[%clk 0:02:31]} 19. Rxb7 {[%clk 0:02:27]}  Rfb8 {[%clk 0:02:30]} 20. Rfb1 {[%clk 0:02:23]}  Rxb7 {[%clk 0:02:29]} 21. Rxb7 {[%clk 0:02:20]}  Bxa2 {[%clk 0:02:30]} 22. Bf3 {[%clk 0:02:18]}  d5 {[%clk 0:02:24]} 23. Rc7 {[%clk 0:02:04]}  e6 {[%clk 0:02:12]} 24. c4 {[%clk 0:02:02]}  a5 {[%clk 0:02:10]} 25. g4 {[%clk 0:01:45]}  a4 {[%clk 0:02:08]} 26. Kg3 {[%clk 0:01:37]}  Bxc4 {[%clk 0:01:58]} 27. g5+ {[%clk 0:01:34]}  Kg7 {[%clk 0:01:57]} 28. f5 {[%clk 0:01:22]}  gxf5 {[%clk 0:01:55]} 29. h4 {[%clk 0:01:21]}  a3 {[%clk 0:01:54]} 30. h5 {[%clk 0:01:20]}  a2 {[%clk 0:01:51]} 31. h6+ {[%clk 0:01:19]}  Kg8 {[%clk 0:01:50]} 32. Bh5 {[%clk 0:01:19]}  a1=Q {[%clk 0:01:48]} 33. Bxf7+ {[%clk 0:01:18]}  Kh8 {[%clk 0:01:48]} 34. Bxe6 {[%clk 0:01:17]}  Qe5+ {[%clk 0:01:46]} 0-1


[Site "https://www.chess.com"]

[Event "Titled Tuesday Blitz March 22 Early 2022"]
[White "Fernandez, Daniel Howard"]
[Black "Ianov, Viktor"]
[WhiteFideId "5801605"]
[BlackFideId "14102730"]
[WhiteElo "2466"]
[BlackElo "2161"]
[Result "1-0"]
[Round "02"]
[TimeControl "180+1"]
[Date "2022.03.22"]
[WhiteClock "0:00:33"]
[BlackClock "0:00:55"]

1. e4 {[%clk 0:03:00]}  d6 {[%clk 0:02:59]} 2. d4 {[%clk 0:03:00]}  Nf6 {[%clk 0:02:59]} 3. Nc3 {[%clk 0:03:01]}  c6 {[%clk 0:03:00]} 4. a4 {[%clk 0:02:51]}  Qa5 {[%clk 0:02:59]} 5. Bd3 {[%clk 0:02:49]}  e5 {[%clk 0:02:58]} 6. Be3 {[%clk 0:02:45]}  Be7 {[%clk 0:02:57]} 7. f3 {[%clk 0:02:43]}  O-O {[%clk 0:02:54]} 8. Ne2 {[%clk 0:02:43]}  Nbd7 {[%clk 0:02:53]} 9. O-O {[%clk 0:02:44]}  Re8 {[%clk 0:02:53]} 10. Qd2 {[%clk 0:02:41]}  Qc7 {[%clk 0:02:51]} 11. a5 {[%clk 0:02:40]}  Nf8 {[%clk 0:02:49]} 12. f4 {[%clk 0:02:37]}  Ng4 {[%clk 0:02:45]} 13. fxe5 {[%clk 0:02:33]}  dxe5 {[%clk 0:02:43]} 14. d5 {[%clk 0:02:24]}  Nxe3 {[%clk 0:02:39]} 15. Qxe3 {[%clk 0:02:25]}  Ng6 {[%clk 0:02:32]} 16. Kh1 {[%clk 0:02:23]}  Bg4 {[%clk 0:02:29]} 17. Rf2 {[%clk 0:02:23]}  h6 {[%clk 0:02:14]} 18. Raf1 {[%clk 0:02:19]}  Rf8 {[%clk 0:02:11]} 19. dxc6 {[%clk 0:02:15]}  bxc6 {[%clk 0:02:10]} 20. Bc4 {[%clk 0:02:15]}  Bb4 {[%clk 0:02:02]} 21. Rxf7 {[%clk 0:02:11]}  Rxf7 {[%clk 0:01:58]} 22. Rxf7 {[%clk 0:02:11]}  Qxf7 {[%clk 0:01:58]} 23. Bxf7+ {[%clk 0:02:10]}  Kxf7 {[%clk 0:01:57]} 24. a6 {[%clk 0:01:58]}  Be6 {[%clk 0:01:52]} 25. Qd3 {[%clk 0:01:44]}  Ba5 {[%clk 0:01:44]} 26. Qd6 {[%clk 0:01:37]}  Rc8 {[%clk 0:01:38]} 27. h3 {[%clk 0:01:35]}  Bc7 {[%clk 0:01:36]} 28. Qxc6 {[%clk 0:01:33]}  Bb6 {[%clk 0:01:33]} 29. Qb7+ {[%clk 0:01:21]}  Rc7 {[%clk 0:01:33]} 30. Qb8 {[%clk 0:01:22]}  Rd7 {[%clk 0:01:30]} 31. Nd5 {[%clk 0:01:16]}  Bxd5 {[%clk 0:01:24]} 32. exd5 {[%clk 0:01:17]}  Rxd5 {[%clk 0:01:18]} 33. Qb7+ {[%clk 0:01:11]}  Ke6 {[%clk 0:01:18]} 34. Qxg7 {[%clk 0:01:09]}  Nf4 {[%clk 0:01:18]} 35. Qg4+ {[%clk 0:00:58]}  Kd6 {[%clk 0:01:15]} 36. Nxf4 {[%clk 0:00:58]}  exf4 {[%clk 0:01:15]} 37. Qxf4+ {[%clk 0:00:58]}  Kc6 {[%clk 0:01:15]} 38. Qf3 {[%clk 0:00:49]}  Kc5 {[%clk 0:01:12]} 39. b4+ {[%clk 0:00:49]}  Kc4 {[%clk 0:01:10]} 40. Qb3+ {[%clk 0:00:48]}  Kd4 {[%clk 0:01:09]} 41. c4 {[%clk 0:00:48]}  Re5 {[%clk 0:01:07]} 42. c5 {[%clk 0:00:44]}  Re1+ {[%clk 0:01:06]} 43. Kh2 {[%clk 0:00:44]}  Bc7+ {[%clk 0:01:06]} 44. g3 {[%clk 0:00:45]}  Re2+ {[%clk 0:01:04]} 45. Kg1 {[%clk 0:00:45]}  Re3 {[%clk 0:01:04]} 46. Qf7 {[%clk 0:00:41]}  Bxg3 {[%clk 0:00:58]} 47. Qxa7 {[%clk 0:00:38]}  Ke4 {[%clk 0:00:58]} 48. Qf7 {[%clk 0:00:35]}  h5 {[%clk 0:00:55]} 49. a7 {[%clk 0:00:34]}  h4 {[%clk 0:00:55]} 50. a8=Q+ {[%clk 0:00:33]} 1-0


[Site "https://www.chess.com"]

[Event "Titled Tuesday Blitz March 22 Early 2022"]
[White "Fiorito, Fabian"]
[Black "pedro_nascimento85"]
[WhiteFideId "100200"]
[WhiteElo "2395"]
[BlackElo "2005"]
[Result "1-0"]
[Round "02"]
[TimeControl "180+1"]
[Date "2022.03.22"]
[WhiteClock "0:02:20"]
[BlackClock "0:02:31"]

1. e4 {[%clk 0:03:00]}  e6 {[%clk 0:02:59]} 2. d4 {[%clk 0:03:00]}  d5 {[%clk 0:02:59]} 3. Nd2 {[%clk 0:03:01]}  c5 {[%clk 0:02:59]} 4. Ngf3 {[%clk 0:03:01]}  Nf6 {[%clk 0:02:56]} 5. e5 {[%clk 0:03:00]}  Nfd7 {[%clk 0:02:57]} 6. c3 {[%clk 0:03:01]}  Nc6 {[%clk 0:02:57]} 7. Bd3 {[%clk 0:03:02]}  Be7 {[%clk 0:02:53]} 8. O-O {[%clk 0:02:59]}  O-O {[%clk 0:02:53]} 9. Re1 {[%clk 0:02:55]}  f6 {[%clk 0:02:51]} 10. exf6 {[%clk 0:02:53]}  Nxf6 {[%clk 0:02:50]} 11. dxc5 {[%clk 0:02:50]}  Bxc5 {[%clk 0:02:50]} 12. Nb3 {[%clk 0:02:51]}  Bd6 {[%clk 0:02:49]} 13. Nbd4 {[%clk 0:02:47]}  Re8 {[%clk 0:02:42]} 14. Nxc6 {[%clk 0:02:27]}  bxc6 {[%clk 0:02:41]} 15. Ne5 {[%clk 0:02:28]}  Qc7 {[%clk 0:02:38]} 16. f4 {[%clk 0:02:22]}  Bxe5 {[%clk 0:02:32]} 17. fxe5 {[%clk 0:02:21]}  Nd7 {[%clk 0:02:32]} 18. Bxh7+ {[%clk 0:02:19]}  Kxh7 {[%clk 0:02:32]} 19. Qh5+ {[%clk 0:02:19]}  Kg8 {[%clk 0:02:31]} 20. Qxe8+ {[%clk 0:02:20]} 1-0


[Site "https://www.chess.com"]